bitfinex/quotes_ETHUSD_20250529
["timestamp","ask_amount","ask_price","bid_price","bid_amount"]
[1748540824052,3.7515006,2665.6,2664.2,2.16172813]
[1748540824053,3.75164134,2665.5,2665.3,0.11172174]
[1748540824252,3.75178209,2665.4,2664.6,0.11172174]
[1748540824454,3.75206363,2665.2,2665.1,0.11172174]
[1748540824655,3.75234521,2665.0,2664.9,0.14522549]
[1748540824855,5.72834521,2665.0,2664.9,0.14522549]
[1748540825079,3.75304935,2664.5,2664.1,0.29066485]
[1748540825294,3.75304935,2664.5,2664.4,2.47183993]
[1748540825500,3.75304935,2664.5,2664.4,7.57999662]
[1748540825900,5.263,2664.8,2664.5,2.58975]
[1748540826104,5.263,2664.8,2664.4,10.32474462]
[1748540826105,5.263,2664.8,2664.4,0.11996319]
[1748540826263,3.75276766,2664.7,2664.6,0.1526094]
[1748540826464,3.75304935,2664.5,2664.4,0.27257259]
[1748540826690,3.75304935,2664.5,2664.4,0.11996319]
[1748540827026,1.977,2665.1,2664.5,2.724098]
[1748540827301,1.977,2665.1,2664.7,0.11450162]
[1748540827597,3.75256672,2664.9,2664.7,0.11450162]
[1748540827757,3.75256672,2664.9,2664.8,2.0293]
[1748540827961,3.75262683,2664.8,2664.7,0.15270543]
[1748540828184,3.75262683,2664.8,2664.7,0.11434317]
[1748540828392,3.7529085,2664.6,2664.5,0.2670486]
[1748540828596,3.75304935,2664.5,2664.4,0.23430636]
[1748540828804,3.75304935,2664.5,2664.4,0.11996319]
[1748540829513,4.50364514,2664.5,2664.4,0.11996319]
[1748540830663,11.07604514,2664.5,2664.4,0.11996319]
[1748540832169,12.98304514,2664.5,2664.4,0.11996319]
[1748540833458,5.85704514,2664.5,2664.4,0.11996319]
[1748540833667,5.67504935,2664.5,2664.4,0.11996319]
[1748540833972,10.86904935,2664.5,2664.4,0.11996319]
[1748540834486,9.61239881,2664.5,2664.4,0.11996319]
[1748540834691,4.41839881,2664.5,2664.4,0.11996319]
[1748540834896,9.60239881,2664.5,2664.4,0.11996319]
[1748540835223,10.93794361,2664.5,2664.4,0.11996319]
[1748540835514,12.38314361,2664.5,2664.4,0.11996319]
[1748540837338,12.35814361,2664.5,2664.4,0.11996319]
[1748540837516,1.4452,2665.5,2664.4,0.11996319]
[1748540837835,3.75304935,2664.5,2664.4,0.11996319]
[1748540837990,8.91204935,2664.5,2664.4,0.11996319]
[1748540838345,10.32363549,2664.5,2664.4,0.11996319]
[1748540839507,10.87363549,2664.5,2664.4,0.11996319]
[1748540839821,1.4509,2663.8,2662.9,0.11376026]
[1748540840133,1.4509,2663.8,2662.8,1.4791]
[1748540840134,3.7548212,2663.3,2663.0,0.20488621]
[1748540840302,3.75517699,2663.0,2662.8,1.4791]
[1748540840508,3.75530436,2662.9,2662.8,1.79259805]
[1748540840827,3.75530436,2662.9,2662.4,0.15270543]
[1748540840828,3.75544383,2662.9,2662.5,0.15270543]
[1748540841144,5.134,2663.0,2662.4,0.11376026]
[1748540841304,8.0,2664.8,2662.4,0.11376026]
[1748540841305,1.4982,2664.7,2662.8,0.11376026]
[1748540841504,3.75347196,2664.2,2663.1,0.11418178]
[1748540841823,3.75382825,2664.0,2663.1,0.11418178]
[1748540842023,3.75347196,2664.2,2663.1,0.11418178]
[1748540842024,3.75418047,2663.7,2663.1,0.11418178]
[1748540842235,3.75397258,2663.9,2663.2,0.11418919]
[1748540842401,5.126,2664.0,2663.2,0.11418919]
[1748540842402,3.75378726,2664.0,2663.3,5.516398]
[1748540842729,3.75337222,2664.3,2663.7,12.285]
[1748540842929,3.75337222,2664.3,2663.6,1.4869]
[1748540843223,3.75333108,2664.3,2663.7,2.89187867]
[1748540843426,8.87023303,2664.4,2663.6,1.4869]
[1748540843427,3.75354681,2664.2,2663.6,1.4869]
[1748540843627,3.75354681,2664.2,2663.7,0.54635342]
[1748540843925,3.75338146,2664.3,2663.8,0.20491407]
[1748540844245,5.117,2664.4,2663.8,0.20491407]
[1748540844246,3.75332216,2664.4,2663.8,10.0]
[1748540844539,3.75333387,2664.3,2663.9,0.20494683]
[1748540844760,3.75341975,2664.3,2664.0,0.20512454]
[1748540844917,3.75348496,2664.2,2663.8,0.11418919]
[1748540845121,1.868,2664.5,2663.9,0.20515188]
[1748540845122,3.75364785,2664.1,2663.9,0.20515188]
[1748540845461,3.7530715,2664.5,2663.8,13.87015619]
[1748540845610,1.5758,2665.9,2663.9,10.20516103]
[1748540845611,3.75320539,2664.4,2663.9,10.20516103]
[1748540845811,3.75320539,2664.4,2664.1,0.11418919]
[1748540846133,3.75320539,2664.4,2664.0,0.20516103]
[1748540846134,3.75333108,2664.3,2664.2,0.20516103]
[1748540846337,1.4911,2664.1,2663.3,0.15270543]
[1748540846538,1.4911,2664.1,2662.7,1.4443]
[1748540846539,5.091,2664.0,2663.0,0.44337028]
[1748540846739,3.75439655,2663.6,2663.1,0.2058462]
[1748540846922,3.75447719,2663.5,2662.8,3.75536105]
[1748540847102,3.75447719,2663.5,2662.8,17.656415]
[1748540847304,3.75389466,2663.9,2662.8,14.315404]
[1748540847505,3.75462439,2663.4,2662.8,2.50125]
[1748540847749,3.7545188,2663.5,2662.8,2.50125]
[1748540847957,3.7545188,2663.5,2663.1,0.11482552]
[1748540848832,3.75460858,2663.4,2663.1,0.11482552]
[1748540849037,3.75460858,2663.4,2663.2,0.11492472]
[1748540849234,3.75451265,2663.5,2663.2,0.11492472]
[1748540849536,3.75451265,2663.5,2663.3,0.11492472]
[1748540849722,3.75459938,2663.4,2663.3,0.11492472]
[1748540850122,3.75459938,2663.4,2662.7,1.4443]
[1748540850123,4.50550673,2663.4,2663.2,0.11492472]
[1748540850331,3.75459938,2663.4,2663.2,0.11492472]
[1748540850543,3.75474035,2663.3,2663.2,0.11492472]
[1748540850725,3.75474035,2663.3,2663.2,0.11505142]
[1748540851456,8.81267054,2663.4,2663.2,0.11505142]
[1748540851620,3.75474035,2663.3,2663.2,0.11505142]
[1748540851817,3.75474035,2663.3,2663.2,0.23517336]
[1748540852130,3.75474035,2663.3,2663.2,0.12012194]
[1748540854359,5.01147521,2663.3,2663.2,0.12012194]
[1748540854533,6.45887521,2663.3,2663.2,0.12012194]
[1748540854728,6.45887521,2663.3,2663.0,0.11505142]
[1748540854729,3.75502234,2663.1,2663.0,0.11505142]
[1748540854956,3.75502234,2663.1,2663.0,0.23519871]
[1748540856069,3.75502234,2663.1,2663.0,0.12014729]
[1748540856363,3.75572748,2662.6,2661.7,10.0]
[1748540856576,3.75581138,2662.6,2661.9,20.558134]
[1748540856728,3.75581138,2662.6,2662.5,0.11541964]
[1748540856928,3.75581138,2662.6,2662.5,0.23557237]
[1748540857131,5.00695632,2662.6,2662.5,0.12015273]
[1748540858955,3.75629178,2662.2,2662.0,0.11541964]
[1748540859154,3.756574,2662.0,2661.4,1.4227]
[1748540859368,8.73444447,2662.1,2662.0,0.11545318]
[1748540859835,8.73444447,2662.1,2662.0,0.23564065]
[1748540860236,10.35913968,2662.1,2662.0,0.23564065]
[1748540860439,10.35913968,2662.1,2662.0,0.12018747]
[1748540860865,12.11913968,2662.1,2662.0,0.12018747]
[1748540861068,3.75713856,2661.6,2661.3,0.11535937]
[1748540861272,3.75587431,2662.5,2661.0,1.5637]
[1748540861273,8.24510938,2662.6,2661.6,1.87759323]
[1748540861483,1.39687972,2663.1,2661.9,10.0]
[1748540861484,1.4615,2663.0,2661.9,10.0]
[1748540861626,1.39687972,2663.1,2662.0,1.87759323]
[1748540861972,1.76,2663.5,2661.8,3.75684621]
[1748540861973,1.76,2663.5,2662.8,1.87759323]
[1748540862266,3.7548766,2663.3,2662.7,10.0]
[1748540862565,6.714,2663.5,2662.8,0.12020077]
[1748540862760,8.70661475,2663.4,2662.9,0.12020077]
[1748540863061,8.702676,2663.4,2663.0,0.12020077]
[1748540863260,4.948,2663.6,2663.1,0.12020077]
[1748540863485,3.75425269,2663.7,2663.2,0.12020077]
[1748540863689,1.707,2664.0,2663.3,0.12011847]
[1748540863888,3.75459938,2663.4,2663.3,0.12011847]
[1748540864299,8.69936126,2663.6,2663.0,0.11519746]
[1748540864498,3.75497119,2663.2,2662.9,0.11519746]
[1748540864793,3.75529833,2663.0,2662.8,0.11519746]
[1748540864948,3.75530436,2662.9,2662.8,0.11519746]
[1748540865154,3.75544539,2662.8,2662.7,0.11525512]
[1748540865350,3.7553733,2662.9,2662.7,0.12013567]
[1748540865556,3.7553733,2662.9,2662.8,0.12013567]
[1748540866880,3.7553733,2662.9,2662.5,1.63831668]
[1748540866881,3.75558643,2662.7,2662.6,0.12014175]
[1748540867081,3.75544539,2662.8,2662.4,0.11531668]
[1748540867256,0.86892026,2662.9,2662.4,0.11531668]
[1748540867257,3.75559889,2662.7,2662.4,0.11531668]
[1748540867456,3.75559889,2662.7,2662.1,1.4812]
[1748540867457,3.75559889,2662.7,2662.3,0.11531668]
[1748540867697,4.934,2663.0,2662.3,0.11531668]
[1748540867992,3.75587867,2662.5,2662.4,0.12015094]
[1748540868365,3.75403558,2663.8,2662.4,0.12015094]
[1748540868566,5.75693201,2663.6,2662.5,0.12015094]
[1748540868763,3.75521406,2663.0,2662.6,0.12015094]
[1748540868996,3.75558643,2662.7,2662.6,0.12015094]
[1748540869297,4.905,2663.0,2662.6,0.12015094]
[1748540869495,6.14649761,2663.0,2662.6,0.12015094]
[1748540869790,6.14649761,2663.0,2662.7,0.12015094]
[1748540869791,3.75544539,2662.8,2662.7,0.12015094]
[1748540870757,3.75597078,2662.5,2662.2,0.11537152]
[1748540870953,6.14649761,2663.0,2662.3,0.12015441]
[1748540871158,3.75532105,2662.9,2662.4,0.12015441]
[1748540871358,3.75566268,2662.7,2662.5,0.12015441]
[1748540871583,3.75558643,2662.7,2662.6,0.12015441]
[1748540872180,3.75558643,2662.7,2662.2,0.11543182]
[1748540872381,3.75558643,2662.7,2662.3,0.12014952]
[1748540872595,3.75577519,2662.6,2662.4,0.12014952]
[1748540872770,3.75577519,2662.6,2662.5,0.12014952]
[1748540873186,3.75577519,2662.6,2662.1,1.59663182]
[1748540873187,3.7560218,2662.4,2662.1,1.4812]
[1748540873391,3.75611988,2662.4,2662.2,0.12015972]
[1748540873816,8.62093873,2662.5,2662.2,0.12015972]
[1748540874022,4.865,2662.5,2662.2,0.12015972]
[1748540874224,3.75601154,2662.4,2662.2,0.12015972]
[1748540874439,4.865,2662.5,2662.2,0.12015972]
[1748540874571,4.865,2662.5,2662.0,0.11543182]
[1748540874787,4.865,2662.5,2662.1,0.12017288]
[1748540874788,3.75629178,2662.2,2662.1,0.12017288]
[1748540875445,3.75629178,2662.2,2661.9,0.11543182]
[1748540875590,3.75643289,2662.1,2662.0,0.12017475]
[1748540876053,3.75630879,2662.2,2661.6,1.4829]
[1748540876255,3.75656377,2662.1,2661.7,0.12017925]
[1748540876400,3.75602883,2662.4,2661.8,0.12017925]
[1748540876738,3.75602883,2662.4,2661.6,1.4829]
[1748540876739,3.7565047,2662.1,2661.9,0.12017991]
[1748540876941,3.7565047,2662.1,2662.0,0.12017991]
[1748540877240,0.86210288,2662.3,2661.6,1.59851503]
[1748540877241,0.86210288,2662.3,2661.6,1.4829]
[1748540877408,3.75677952,2661.9,2661.5,0.11561503]
[1748540877742,3.75677952,2661.9,2661.6,0.12018371]
[1748540877743,8.59078626,2661.9,2661.6,0.12018371]
[1748540878150,8.59078626,2661.9,2661.7,0.12018371]
[1748540878442,4.826,2661.9,2661.8,0.12018371]
[1748540880241,0.86210288,2662.3,2661.8,0.12018371]
[1748540880242,4.814,2662.0,2661.8,0.12018371]
[1748540880534,4.812,2662.1,2661.9,0.12018371]
[1748540880741,3.756574,2662.0,2661.6,0.23120228]
[1748540880898,4.812,2662.1,2661.6,0.11558725]
[1748540881094,4.812,2662.1,2662.0,0.12017491]
[1748540881341,3.7564946,2662.1,2662.0,0.12017491]
[1748540881519,3.7564946,2662.1,2661.6,0.11558725]
[1748540881520,8.5624946,2662.1,2661.6,0.11558725]
[1748540881856,3.75636119,2662.2,2661.7,0.12017669]
[1748540881857,3.75664629,2662.0,2661.7,0.12017669]
[1748540882055,4.804,2662.0,2661.8,0.12017669]
[1748540882220,3.7560889,2662.4,2661.9,0.12017669]
[1748540882415,6.454,2662.6,2662.0,0.12017669]
[1748540882712,10.20974997,2662.6,2662.1,0.12017669]
[1748540883050,3.75621559,2662.3,2662.1,0.12017669]
[1748540883203,3.75602018,2662.4,2662.1,0.12017669]
[1748540883554,3.75602775,2662.4,2662.2,0.12016304]
[1748540883842,3.75602775,2662.4,2661.7,3.34579323]
[1748540883843,3.75656586,2662.1,2661.7,3.46138172]
[1748540884041,3.75656586,2662.1,2661.7,0.11558849]
[1748540884042,4.789,2662.1,2661.7,0.11558849]
[1748540884213,3.75685626,2661.8,2661.7,0.11558849]
[1748540884395,3.7569974,2661.7,2661.6,0.26975733]
[1748540884743,3.7569974,2661.7,2661.5,0.15416884]
[1748540884939,3.75729374,2661.5,2661.0,0.25658849]
[1748540885098,0.4789,2662.0,2661.1,1.99779605]
[1748540885305,3.75707115,2661.7,2661.2,0.12020282]
[1748540885504,3.75693477,2661.8,2661.2,0.12020282]
[1748540886234,3.75676447,2661.9,2661.2,0.12020282]
[1748540886414,3.75676447,2661.9,2661.3,0.12020282]
[1748540886415,3.75701054,2661.7,2661.3,0.12020282]
[1748540886615,3.75701054,2661.7,2661.4,0.12020282]
[1748540886815,3.75714278,2661.6,2661.5,0.12020282]
[1748540887019,3.75714278,2661.6,2661.0,0.25658849]
[1748540887241,8.53296285,2661.8,2661.1,10.12019845]
[1748540887544,3.0846,2662.4,2661.2,1.99779168]
[1748540887729,3.75656168,2662.1,2661.3,1.76588997]
[1748540888042,3.75629178,2662.2,2661.4,0.12018766]
[1748540888219,8.52069941,2662.0,2661.5,0.12018766]
[1748540888414,3.75648848,2662.1,2661.6,0.12018766]
[1748540888636,4.76,2662.0,2661.7,0.12018766]
[1748540888835,3.75672663,2661.9,2661.8,0.12018766]
[1748540889040,8.51657676,2662.0,2661.8,0.12018766]
[1748540889219,8.51657676,2662.0,2661.4,0.11550231]
[1748540889422,8.51657676,2662.0,2661.5,0.12018387]
[1748540889621,8.51657676,2662.0,2661.6,0.12018387]
[1748540889825,4.76,2662.0,2661.7,0.12018387]
[1748540890049,3.75671512,2661.9,2661.3,1.64570231]
[1748540890347,3.75679151,2661.9,2661.4,0.12018739]
[1748540890547,3.75692406,2661.8,2661.5,0.12018739]
[1748540890749,4.76,2662.0,2661.5,0.12018739]
[1748540890750,3.75713856,2661.6,2661.5,0.12018739]
[1748540891114,4.742,2661.8,2661.5,0.12018739]
[1748540891741,3.75678182,2661.9,2661.5,0.12018739]
[1748540892050,4.742,2661.9,2661.3,1.99314493]
[1748540892417,3.7562174,2662.3,2661.4,3.75728557]
[1748540892762,8.49335694,2662.2,2661.5,17.526248]
[1748540893462,3.75645598,2662.1,2661.5,12.177174]
[1748540893688,4.737,2662.2,2661.5,8.486174]
[1748540893689,3.75703311,2661.7,2661.5,8.486174]
[1748540893856,4.737,2662.2,2661.4,1.6849517]
[1748540894053,3.75692304,2661.8,2661.6,0.12018388]
[1748540894244,3.75692304,2661.8,2661.4,1.6849517]
[1748540894446,3.75674031,2661.9,2661.4,1.6849517]
[1748540894642,4.737,2662.2,2661.4,1.6849517]
[1748540894643,8.49331865,2662.2,2661.4,1.6849517]
[1748540894872,4.737,2662.2,2661.4,1.6849517]
[1748540895081,4.23013289,2662.1,2661.4,1.6849517]
[1748540895298,0.4737,2662.1,2661.4,0.1155517]
[1748540895449,0.4737,2662.1,2661.0,1.7104]
[1748540895450,3.75754708,2661.4,2661.0,1.82614395]
[1748540895649,3.7574209,2661.4,2661.0,0.25674395]
[1748540895963,4.719,2661.5,2661.0,0.141]
[1748540896167,3.7578445,2661.1,2661.0,0.141]
[1748540897417,4.708,2661.1,2661.0,0.141]
[1748540897578,8.4658445,2661.1,2661.0,0.141]
[1748540898323,10.6224445,2661.1,2661.0,0.141]
[1748540898687,10.0724445,2661.1,2661.0,0.141]
[1748540898921,1.929,2661.4,2661.0,0.141]
[1748540899211,1.929,2661.4,2660.2,0.11567223]
[1748540899212,3.75846644,2660.7,2660.2,0.11567223]
[1748540899529,3.75833145,2660.8,2660.3,0.12024018]
[1748540899530,3.75833431,2660.8,2660.3,0.12024018]
[1748540899671,3.75833431,2660.8,2660.4,0.12024018]
[1748540899886,3.75833431,2660.8,2660.0,3.75937815]
[1748540900083,3.75798571,2661.0,2660.0,6.36621106]
[1748540900340,3.75829592,2660.8,2660.2,10.0]
[1748540900535,4.701,2661.1,2660.1,10.0]
[1748540900833,4.701,2661.1,2660.3,0.12023975]
[1748540901053,3.75844079,2660.7,2660.5,0.12024211]
[1748540901229,3.478,2661.4,2658.6,1.86369757]
[1748540901230,5.21734667,2659.4,2658.6,1.86369757]
[1748540901404,0.55,2660.1,2658.5,0.30901149]
[1748540901405,3.76137816,2658.6,2658.5,0.30901149]
[1748540901726,3.76194417,2658.2,2658.1,0.30901149]
[1748540901941,0.55,2658.9,2658.1,0.30901149]
[1748540902094,0.55,2658.9,2657.7,3.93496018]
[1748540902095,3.7614693,2658.6,2657.7,3.93496018]
[1748540902296,3.76188167,2658.3,2657.7,0.1724]
[1748540902502,8.47914804,2658.8,2657.9,3.76228312]
[1748540902714,4.718,2658.8,2657.7,3.93494169]
[1748540902897,3.76149159,2658.6,2657.7,3.88494169]
[1748540903085,1.55,2658.8,2657.9,5.63995481]
[1748540903280,8.47326228,2658.7,2657.9,1.87759323]
[1748540903481,3.76141789,2658.6,2657.9,1.87759323]
[1748540903708,4.712,2658.7,2657.9,1.87759323]
[1748540903912,4.712,2658.7,2657.7,0.1224]
[1748540904426,8.47333153,2658.7,2657.9,3.76231794]
[1748540904631,4.712,2658.7,2657.7,10.1224]
[1748540904830,3.76155041,2658.5,2657.7,10.1224]
[1748540905028,8.47324211,2658.7,2657.7,10.1224]
[1748540905239,3.76155544,2658.5,2657.7,3.88493036]
[1748540905537,8.47324211,2658.7,2657.7,3.88493036]
[1748540905538,4.712,2658.7,2657.7,0.1224]
[1748540905738,3.76140965,2658.6,2657.8,3.76242962]
[1748540905890,8.45640965,2658.6,2657.8,3.76242962]
[1748540906424,8.4545314,2658.5,2657.8,3.76242962]
[1748540906591,2.12679718,2658.9,2657.7,10.1224]
[1748540906592,0.57679718,2658.9,2657.9,1.87759323]
[1748540906793,3.0014,2659.7,2658.5,0.1224]
[1748540907141,3.76079977,2659.1,2658.5,0.1224]
[1748540907284,8.44800597,2659.6,2658.5,0.1224]
[1748540907285,3.76088261,2659.0,2658.5,0.1224]
[1748540907486,8.44800597,2659.6,2658.5,0.1224]
[1748540907487,3.76073379,2659.1,2658.5,0.1224]
[1748540907693,4.686,2659.2,2658.5,3.88388767]
[1748540907949,4.684,2659.2,2658.6,10.0]
[1748540908094,2.40026579,2659.8,2658.7,1.87759323]
[1748540908295,3.7600996,2659.6,2658.9,3.76094739]
[1748540908521,3.7600996,2659.6,2658.8,10.0]
[1748540908758,8.44101582,2659.6,2658.8,3.76104173]
[1748540908895,3.76016435,2659.5,2658.5,13.88382035]
[1748540909244,2.40026579,2659.8,2658.9,0.1224]
[1748540909404,7.07626579,2659.8,2658.9,0.1224]
[1748540909603,3.75991567,2659.7,2658.9,3.88332868]
[1748540910039,7.07626579,2659.8,2658.9,3.88325431]
[1748540910245,7.07626579,2659.8,2658.9,0.1224]
[1748540910444,7.07626579,2659.8,2658.9,3.88328808]
[1748540910445,3.75982586,2659.7,2658.9,3.88328808]
[1748540910654,7.07626579,2659.8,2659.0,3.76070499]
[1748540910943,2.40026579,2659.8,2659.2,3.76049966]
[1748540911193,3.1129,2661.0,2659.1,1.87759323]
[1748540911322,3.75855658,2660.6,2659.9,3.75953889]
[1748540911650,3.7587014,2660.5,2659.8,13.75965148]
[1748540911951,4.673,2660.7,2659.6,0.1224]
[1748540912157,3.75935129,2660.1,2659.6,0.1224]
[1748540912511,5.36198555,2660.3,2659.6,0.1224]
[1748540912512,3.75941327,2660.0,2659.6,0.1224]
[1748540912934,1.6029,2660.3,2659.6,0.1224]
[1748540912935,3.7593933,2660.1,2659.6,0.1224]
[1748540913120,3.75911585,2660.2,2659.6,0.1224]
[1748540913321,4.662,2660.2,2659.6,0.1224]
[1748540913524,4.662,2660.4,2659.8,3.75959425]
[1748540913770,4.662,2660.4,2659.6,0.1224]
[1748540914037,4.662,2660.4,2659.6,3.88227851]
[1748540914038,3.75907147,2660.3,2659.6,3.88227851]
[1748540914543,3.75911932,2660.2,2659.6,0.1224]
[1748540914740,3.7593471,2660.1,2659.6,0.1224]
[1748540915542,5.24194682,2660.3,2659.6,3.88234191]
[1748540915713,3.75906837,2660.3,2659.6,3.88227372]
[1748540916039,3.75897455,2660.3,2659.6,3.88227372]
[1748540916552,1.4929,2660.6,2659.6,0.1224]
[1748540916703,4.642,2660.6,2660.0,3.75927485]
[1748540916901,4.642,2660.6,2660.1,3.75922298]
[1748540917243,3.75834847,2660.8,2660.1,3.75925717]
[1748540917409,3.75834847,2660.8,2660.2,3.75908138]
[1748540917599,3.75834847,2660.8,2660.1,3.75916979]
[1748540917802,3.75812731,2660.9,2660.2,3.75899605]
[1748540917998,3.75827835,2660.8,2660.1,3.75916979]
[1748540918442,0.47519231,2660.9,2659.8,5.322018]
[1748540918608,3.75843275,2660.7,2660.0,3.75927739]
[1748540918831,3.75812694,2660.9,2660.2,3.75909011]
[1748540919025,3.75812694,2660.9,2660.1,3.7592136]
[1748540919227,3.75826819,2660.8,2660.1,3.7592136]
[1748540919427,1.4929,2661.0,2659.6,3.88233502]
[1748540919428,1.4929,2661.0,2659.7,3.75982253]
[1748540919622,0.52507838,2660.9,2659.6,0.1224]
[1748540919857,3.971,2662.2,2659.9,1.95289323]
[1748540920082,1.5285,2662.0,2660.2,29.634174]
[1748540920367,3.75747936,2661.4,2660.7,3.7583289]
[1748540920534,3.75757385,2661.3,2660.7,3.7583289]
[1748540920742,1.5285,2662.0,2660.3,1.95289323]
[1748540921078,3.75683006,2661.9,2661.0,3.75789669]
[1748540921224,3.75683006,2661.9,2660.6,3.75844276]
[1748540921225,3.75728069,2661.5,2660.9,3.75805987]
[1748540921433,3.75721006,2661.6,2660.9,3.75805987]
[1748540921760,3.75729973,2661.5,2660.9,3.75805987]
[1748540921928,3.75687574,2661.8,2661.0,3.75795865]
[1748540922127,0.37568757,2661.7,2661.0,3.75795865]
[1748540922328,4.1327107,2661.7,2660.4,13.301279]
[1748540922523,4.1327107,2661.7,2660.3,1.95289323]
[1748540922524,0.37568757,2661.7,2660.3,1.95289323]
[1748540922753,3.75766394,2661.3,2660.6,3.75853164]
[1748540922962,3.75748485,2661.4,2660.6,3.75853164]
[1748540923161,3.75748485,2661.4,2660.7,3.75840944]
[1748540923366,3.75758168,2661.3,2660.6,3.75848253]
[1748540923569,4.30687653,2661.8,2660.5,3.75866464]
[1748540923775,11.971,2662.7,2660.3,0.0753]
[1748540923776,2.0243,2661.6,2660.3,0.0753]
[1748540924011,3.75836212,2660.8,2660.3,0.0753]
[1748540924304,3.75765082,2661.3,2659.7,10.43918]
[1748540924305,2.0243,2661.3,2659.7,10.43918]
[1748540924448,1.4743,2661.3,2659.7,3.83505329]
[1748540924648,1.4743,2660.6,2659.7,0.0753]
[1748540924894,1.4743,2660.6,2658.4,7.48215025]
[1748540924895,3.75961359,2659.9,2659.3,0.0753]
[1748540925049,3.75961063,2659.9,2659.3,0.0753]
[1748540925389,3.75951611,2660.0,2659.3,3.83562289]
[1748540925594,0.55,2660.1,2659.3,0.0753]
[1748540925754,3.7597842,2659.8,2659.3,0.0753]
[1748540925952,3.75977336,2659.8,2659.3,0.0753]
[1748540926151,3.75982253,2659.7,2659.0,13.76072824]
[1748540926487,3.75982253,2659.7,2659.1,3.76060429]
[1748540926695,3.7600034,2659.6,2658.9,3.76090706]
[1748540926896,3.76032164,2659.4,2658.8,3.8362886]
[1748540927048,3.7599639,2659.6,2658.8,3.83632479]
[1748540927049,3.760188,2659.5,2658.8,3.83632479]
[1748540927402,3.760188,2659.5,2658.8,0.0753]
[1748540927683,4.65593957,2659.7,2659.0,3.76071797]
[1748540927888,3.7599794,2659.6,2658.9,3.76088553]
[1748540928092,4.74564899,2659.6,2659.0,3.76079926]
[1748540928298,4.74564899,2659.6,2658.8,3.83635118]
[1748540928466,3.76010636,2659.5,2658.9,3.76095377]
[1748540929304,0.98567403,2659.6,2658.9,3.76087398]
[1748540929448,3.76017288,2659.5,2658.8,3.8363387]
[1748540929644,3.76017288,2659.5,2658.9,3.76094457]
[1748540929984,4.74567684,2659.6,2658.9,3.76094457]
[1748540930187,4.74567684,2659.6,2659.0,3.7608032]
[1748540930489,3.759869,2659.7,2659.1,3.76064613]
[1748540930892,1.4599,2660.3,2659.4,3.76024667]
[1748540931054,3.75919961,2660.2,2659.6,3.75995835]
[1748540931254,3.75922312,2660.2,2659.5,13.83533958]
[1748540931463,3.75927578,2660.1,2659.5,3.83533958]
[1748540931767,5.21847691,2660.6,2659.5,3.83533958]
[1748540931768,3.75942858,2660.0,2659.5,10.0753]
[1748540931977,3.75929041,2660.1,2659.5,13.83537745]
[1748540932316,1.4599,2660.6,2659.5,0.0753]
[1748540932463,3.75948831,2660.0,2659.5,0.0753]
[1748540932873,3.75883325,2660.4,2659.5,0.0753]
[1748540933073,3.75998166,2659.6,2659.2,0.0753]
[1748540933264,3.75989174,2659.7,2659.2,0.0753]
[1748540933468,3.75953983,2659.9,2658.8,0.0753]
[1748540933716,3.76061894,2659.2,2658.8,0.0753]
[1748540933945,3.76045172,2659.3,2658.8,0.0753]
[1748540934295,3.7599639,2659.6,2658.8,3.83629534]
[1748540934493,3.75958154,2659.9,2659.0,5.802145]
[1748540934494,3.75953983,2659.9,2659.0,5.802145]
[1748540934742,1.83578333,2660.3,2658.8,0.0753]
[1748540935033,3.75926962,2660.1,2659.5,3.76000153]
[1748540935423,3.75932139,2660.1,2659.5,3.76005092]
[1748540935654,3.75950858,2660.0,2659.4,3.76021035]
[1748540935927,3.75951195,2660.0,2659.4,3.76023711]
[1748540936091,3.75928856,2660.1,2659.2,10.0]
[1748540936292,3.75919914,2660.2,2659.1,1.95289323]
[1748540936491,3.75933122,2660.1,2659.5,3.76010484]
[1748540936693,3.7594193,2660.0,2659.4,3.76015239]
[1748540936889,3.75933233,2660.1,2659.5,3.76009452]
[1748540937144,3.75947231,2660.0,2659.4,3.76022416]
[1748540937501,1.4599,2660.3,2659.5,3.7600961]
[1748540937502,3.75917317,2660.2,2659.5,3.7600961]
[1748540937829,3.75918099,2660.2,2659.6,3.7599337]
[1748540938029,5.21899958,2660.3,2659.6,3.75988408]
[1748540938330,3.75939778,2660.1,2659.4,3.76014489]
[1748540938970,3.75911585,2660.2,2659.4,3.76014489]
[1748540939111,3.75932518,2660.1,2659.5,3.76010528]
[1748540939450,3.75927475,2660.1,2659.5,3.76003795]
[1748540939753,5.21890448,2660.3,2659.6,3.75989155]
[1748540939948,5.21890448,2660.3,2659.3,10.0]
[1748540939949,3.75914139,2660.2,2659.5,3.76000708]
[1748540940154,3.75921026,2660.2,2659.3,3.76032907]
[1748540940354,3.75964786,2659.9,2659.1,5.71347863]
[1748540940555,3.75964786,2659.9,2659.1,1.95289323]
[1748540940769,0.55,2659.8,2658.8,0.15365143]
[1748540941055,3.76123669,2658.7,2658.6,0.15365143]
[1748540941262,4.13736036,2658.7,2658.6,0.15365143]
[1748540941474,3.76123669,2658.7,2658.6,0.15365143]
[1748540941637,3.76144341,2658.6,2658.0,3.99116538]
[1748540941979,3.76144341,2658.6,2658.0,3.83751395]
[1748540942276,3.76112958,2658.8,2658.2,3.76194417]
[1748540942434,1.4637,2659.7,2658.7,0.0753]
[1748540942636,1.4637,2659.7,2658.8,3.76103859]
[1748540942834,1.4637,2659.7,2658.7,10.0753]
[1748540942835,1.4637,2659.7,2659.0,3.76068149]
[1748540943039,3.75955196,2659.9,2659.1,3.76057556]
[1748540943234,1.4637,2660.1,2659.3,0.0753]
[1748540943437,3.75816321,2660.9,2659.5,3.76001047]
[1748540943438,3.75913107,2660.2,2659.5,3.76001047]
[1748540943647,3.75913107,2660.2,2659.3,5.71322357]
[1748540943648,3.75968262,2659.8,2659.3,0.0753]
[1748540943892,3.75928838,2660.1,2659.3,3.83568774]
[1748540944090,3.75952925,2660.0,2659.3,0.0753]
[1748540944400,3.75976911,2659.8,2659.3,0.0753]
[1748540944894,3.75989664,2659.7,2659.3,0.0753]
[1748540945198,3.76003117,2659.6,2659.0,3.83599758]
[1748540945359,3.75925717,2660.1,2659.0,0.0753]
[1748540945360,1.4405,2659.9,2659.0,0.0753]
[1748540945561,1.4405,2659.9,2659.1,3.76066054]
[1748540945766,3.75992739,2659.7,2659.1,3.76066054]
[1748540945963,3.75999429,2659.6,2659.0,3.83605761]
[1748540946590,3.76025055,2659.4,2659.0,0.0753]
[1748540946788,3.76054738,2659.2,2658.6,3.8366074]
[1748540946946,3.7604537,2659.3,2658.7,3.76121485]
[1748540947147,3.7604537,2659.3,2658.8,3.76109517]
[1748540947386,3.76049245,2659.3,2658.7,3.76115964]
[1748540947589,3.76049245,2659.3,2658.8,3.76108915]